fUSD/lending_fUSD_20240423
["ID","MTS","AMOUNT","RATE_DAILY","PERIOD"]
[323266266,1713858638689,-150.0,0.0001199,2]
[323266268,1713858638698,-2506.21574775,0.00011991,2]
[323266270,1713858638707,-1265.56,0.00011992,2]
[323266272,1713858638716,-500.0,0.00011992,2]
[323266274,1713858638727,-500.0,0.00011992,2]
[323266277,1713858638736,-2745.3120214,0.00011993,2]
[323266279,1713858638745,-500.0,0.00011993,2]
[323266280,1713858638755,-616.02,0.00011993,2]
[323266283,1713858638765,-500.0,0.00011993,2]
[323266284,1713858638776,-500.0,0.00011993,2]
[323266286,1713858638786,-635.06,0.00011993,2]
[323266288,1713858638796,-835.72,0.00011993,2]
[323266290,1713858638805,-537.7,0.00011993,2]
[323266292,1713858638814,-500.0,0.00011993,2]
[323266294,1713858638823,-1135.54,0.00011993,2]
[323266297,1713858638833,-500.0,0.00011993,2]
[323266299,1713858638843,-500.0,0.00011993,2]
[323266301,1713858638852,-508.69101409,0.00011993,2]
[323266303,1713858638861,-500.0,0.00011993,2]
[323266305,1713858638870,-500.0,0.00011993,2]
[323266307,1713858638879,-500.0,0.00011993,2]
[323266309,1713858638888,-504.4335535,0.00011993,2]
[323266311,1713858638898,-500.0,0.00011993,2]
[323266313,1713858638908,-618.90849093,0.00011993,2]
[323266314,1713858638917,-500.0,0.00011993,2]
[323266316,1713858638926,-500.0,0.00011993,2]
[323266319,1713858638935,-500.0,0.00011993,2]
[323266321,1713858638946,-500.0,0.00011993,2]
[323266323,1713858638954,-1282.05,0.00011993,2]
[323266325,1713858638964,-500.0,0.00011993,2]
[323266327,1713858638973,-526.54,0.00011993,2]
[323266329,1713858638982,-549.22850341,0.00011993,2]
[323266331,1713858638992,-500.0,0.00011993,2]
[323266333,1713858639001,-500.0,0.00011993,2]
[323266335,1713858639010,-500.0,0.00011993,2]
[323266337,1713858639020,-500.0,0.00011993,2]
[323266339,1713858639029,-329.041338,0.00011993,2]
[323266341,1713858639038,-507.94123038,0.00011993,2]
[323266343,1713858639047,-500.0,0.00011993,2]
[323266345,1713858639057,-500.0,0.00011993,2]
[323266347,1713858639066,-500.0,0.00011993,2]
[323266349,1713858639076,-500.0,0.00011993,2]
[323266351,1713858639085,-500.0,0.00011993,2]
[323266353,1713858639094,-500.0,0.00011993,2]
[323266355,1713858639104,-500.0,0.00011993,2]
[323266357,1713858639113,-1356.45,0.00011993,2]
[323266359,1713858639122,-500.0,0.00011993,2]
[323266361,1713858639131,-506.35789469,0.00011993,2]
[323266363,1713858639140,-1399.17,0.00011993,2]
[323266365,1713858639149,-500.0,0.00011993,2]
[323266367,1713858639158,-500.0,0.00011993,2]
[323266369,1713858639167,-500.0,0.00011993,2]
[323266371,1713858639177,-3222.58,0.00011993,2]
[323266373,1713858639185,-500.0,0.00011993,2]
[323266375,1713858639194,-506.88789594,0.00011993,2]
[323266377,1713858639204,-500.0,0.00011993,2]
[323266379,1713858639212,-500.0,0.00011993,2]
[323266380,1713858639221,-485.53135173,0.00011993,2]
[323266381,1713858639230,-500.0,0.00011993,2]
[323266382,1713858639239,-1130.77,0.00011993,2]
[323266383,1713858639247,-500.0,0.00011993,2]
[323266384,1713858639256,-500.0,0.00011993,2]
[323266385,1713858639265,-500.0,0.00011993,2]
[323266386,1713858639274,-500.0,0.00011993,2]
[323266387,1713858639283,-574.96461919,0.00011993,2]
[323266388,1713858639292,-500.0,0.00011993,2]
[323266389,1713858639301,-500.0,0.00011993,2]
[323266390,1713858639311,-1615.98,0.00011993,2]
[323266391,1713858639320,-500.0,0.00011993,2]
[323266392,1713858639329,-1055.53,0.00011993,2]
[323266393,1713858639337,-500.0,0.00011993,2]
[323266395,1713858639347,-450.68402175,0.00011993,2]
[323266397,1713858639356,-500.0,0.00011993,2]
[323266399,1713858639365,-500.0,0.00011993,2]
[323266401,1713858639374,-643.38,0.00011993,2]
[323266403,1713858639384,-500.0,0.00011993,2]
[323266405,1713858639394,-500.0,0.00011993,2]
[323266407,1713858639403,-500.0,0.00011993,2]
[323266409,1713858639412,-500.0,0.00011993,2]
[323266411,1713858639421,-506.89035017,0.00011993,2]
[323266413,1713858639430,-500.0,0.00011993,2]
[323266415,1713858639440,-500.0,0.00011993,2]
[323266416,1713858639449,-672.03,0.00011993,2]
[323266418,1713858639458,-500.0,0.00011993,2]
[323266420,1713858639468,-500.0,0.00011993,2]
[323266422,1713858639478,-998.93,0.00011993,2]
[323266424,1713858639488,-6975.8,0.00011993,2]
[323266426,1713858639498,-500.0,0.00011993,2]
[323266428,1713858639507,-500.0,0.00011993,2]
[323266430,1713858639517,-500.0,0.00011993,2]
[323266432,1713858639527,-150.0,0.00011993,2]
[323266434,1713858639536,-500.0,0.00011993,2]
[323266436,1713858639546,-500.0,0.00011993,2]
[323266438,1713858639556,-1245.83,0.00011993,2]
[323266440,1713858639565,-508.29008182,0.00011993,2]
[323266443,1713858639575,-460.71191539,0.00011993,2]
[323266444,1713858639584,-989.05,0.00011993,2]
[323266446,1713858639594,-216.77981573,0.00011993,2]
[323266448,1713858639603,-500.0,0.00011993,2]
[323266450,1713858639612,-1524.06,0.00011993,2]
[323266452,1713858639620,-2528.89,0.00011993,2]
[323266454,1713858639630,-597.25606466,0.00011993,2]
[323266456,1713858639639,-500.0,0.00011993,2]
[323266459,1713858639649,-500.0,0.00011993,2]
[323266460,1713858639658,-500.0,0.00011993,2]
[323266463,1713858639668,-500.0,0.00011993,2]
[323266464,1713858639678,-500.0,0.00011993,2]
[323266466,1713858639689,-500.0,0.00011993,2]
[323266469,1713858639699,-550.54,0.00011993,2]
[323266471,1713858639708,-504.80855703,0.00011993,2]
[323266473,1713858639718,-500.0,0.00011993,2]
[323266474,1713858639727,-500.0,0.00011993,2]
[323266476,1713858639736,-583.82417728,0.00011993,2]
[323266479,1713858639745,-884.55,0.00011993,2]
[323266480,1713858639755,-500.0,0.00011993,2]
[323266483,1713858639764,-546.07273924,0.00011993,2]
[323266484,1713858639775,-500.0,0.00011993,2]
[323266487,1713858639784,-500.0,0.00011993,2]
[323266489,1713858639793,-581.51,0.00011993,2]
[323266491,1713858639802,-1512.42,0.00011993,2]
[323266492,1713858639812,-211.42,0.00011993,2]
[323266494,1713858639822,-500.0,0.00011993,2]
[323266496,1713858639831,-3065.9,0.00011993,2]
[323266498,1713858639840,-596.09,0.00011993,2]
[323266501,1713858639850,-500.0,0.00011993,2]
[323266503,1713858639859,-500.0,0.00011993,2]
[323266504,1713858639868,-500.0,0.00011993,2]
[323266507,1713858639878,-500.0,0.00011993,2]
[323266509,1713858639887,-1158.34,0.00011993,2]
[323266511,1713858639898,-4807.78,0.00011993,2]
[323266513,1713858639907,-1211.26,0.00011993,2]
[323266515,1713858639916,-505.62263145,0.00011993,2]
[323266517,1713858639925,-503.15753355,0.00011993,2]
[323266519,1713858639934,-504.12784133,0.00011993,2]
[323266521,1713858639943,-628.93242781,0.00011993,2]
[323266523,1713858639952,-500.0,0.00011993,2]
[323266525,1713858639962,-500.0,0.00011993,2]
[323266527,1713858639971,-544.61,0.00011993,2]
[323266529,1713858639980,-2685.12,0.00011993,2]
[323266530,1713858639989,-207.91,0.00011993,2]
[323266533,1713858639998,-2552.68,0.00011993,2]
[323266535,1713858640007,-507.06318018,0.00011993,2]
[323266537,1713858640016,-5867.87,0.00011993,2]
[323266538,1713858640026,-637.31365885,0.00011993,2]
[323266540,1713858640035,-500.0,0.00011993,2]
[323266542,1713858640044,-500.0,0.00011993,2]
[323266544,1713858640054,-500.0,0.00011993,2]
[323266546,1713858640063,-275.08333795,0.00011993,2]
[323266548,1713858640072,-500.0,0.00011993,2]
[323266550,1713858640081,-500.0,0.00011993,2]
[323266552,1713858640091,-500.0,0.00011993,2]
[323266554,1713858640100,-1100.97,0.00011993,2]
[323266556,1713858640109,-384.54323858,0.00011993,2]
[323266558,1713858640119,-500.0,0.00011993,2]
[323266560,1713858640128,-196.65,0.00011993,2]
[323266563,1713858640137,-933.27,0.00011993,2]
[323266566,1713858640148,-500.0,0.00011993,2]
[323266569,1713858640157,-10755.33,0.00011993,2]
[323266572,1713858640167,-500.0,0.00011993,2]
[323266574,1713858640176,-578.94640226,0.00011993,2]
[323266577,1713858640184,-500.0,0.00011993,2]
[323266579,1713858640194,-500.0,0.00011993,2]
[323266581,1713858640204,-500.0,0.00011993,2]
[323266583,1713858640213,-409.95577367,0.00011993,2]
[323266585,1713858640222,-1369.8,0.00011993,2]
[323266587,1713858640231,-500.0,0.00011993,2]
[323266589,1713858640240,-165.31206238,0.00011993,2]
[323266592,1713858640249,-500.0,0.00011993,2]
[323266594,1713858640259,-500.0,0.00011993,2]
[323266596,1713858640268,-500.0,0.00011993,2]
[323266598,1713858640277,-1318.64,0.00011993,2]
[323266600,1713858640287,-11161.82,0.00011993,2]
[323266602,1713858640296,-471.03775123,0.00011993,2]
[323266604,1713858640306,-500.0,0.00011993,2]
[323266606,1713858640315,-500.0,0.00011993,2]
[323266608,1713858640325,-500.0,0.00011993,2]
[323266610,1713858640334,-3897.82,0.00011993,2]
[323266612,1713858640344,-500.0,0.00011993,2]
[323266615,1713858640354,-500.0,0.00011993,2]
[323266617,1713858640363,-1809.25,0.00011993,2]
[323266619,1713858640372,-500.0,0.00011993,2]
[323266621,1713858640382,-500.0,0.00011993,2]
[323266622,1713858640391,-500.0,0.00011993,2]
[323266624,1713858640401,-11951.88,0.00011993,2]
[323266627,1713858640410,-589.26536761,0.00011993,2]
[323266629,1713858640419,-500.0,0.00011993,2]
[323266630,1713858640429,-500.0,0.00011993,2]
[323266632,1713858640438,-500.0,0.00011993,2]
[323266634,1713858640447,-500.0,0.00011993,2]
[323266636,1713858640457,-500.0,0.00011993,2]
[323266639,1713858640466,-500.0,0.00011993,2]
[323266641,1713858640476,-7100.49,0.00011993,2]
[323266643,1713858640486,-1237.94,0.00011993,2]
[323266645,1713858640497,-500.0,0.00011993,2]
[323266646,1713858640507,-500.0,0.00011993,2]
[323266648,1713858640517,-523.55,0.00011993,2]
[323266650,1713858640526,-500.0,0.00011993,2]
[323266653,1713858640535,-500.0,0.00011993,2]
[323266655,1713858640544,-500.0,0.00011993,2]
[323266657,1713858640554,-500.0,0.00011993,2]
[323266659,1713858640564,-500.0,0.00011993,2]
[323266661,1713858640573,-500.0,0.00011993,2]
[323266663,1713858640583,-500.0,0.00011993,2]
[323266665,1713858640592,-29405.77,0.00011993,2]
[323266667,1713858640602,-582.05,0.00011993,2]
[323266669,1713858640611,-500.0,0.00011993,2]
[323266671,1713858640620,-502.62017985,0.00011993,2]
[323266673,1713858640630,-1072.4,0.00011993,2]
[323266675,1713858640639,-500.0,0.00011993,2]
[323266677,1713858640649,-500.0,0.00011993,2]
[323266679,1713858640659,-837.1,0.00011993,2]
[323266681,1713858640669,-500.0,0.00011993,2]
[323266683,1713858640680,-500.0,0.00011993,2]
[323266685,1713858640690,-600.69,0.00011993,2]
[323266687,1713858640699,-500.0,0.00011993,2]
[323266689,1713858640707,-500.0,0.00011993,2]
[323266691,1713858640717,-45202.39,0.00011993,2]
[323266693,1713858640726,-500.0,0.00011993,2]
[323266695,1713858640735,-500.0,0.00011993,2]
[323266697,1713858640744,-500.0,0.00011993,2]
[323266699,1713858640754,-500.0,0.00011993,2]
[323266701,1713858640765,-500.0,0.00011993,2]
[323266703,1713858640775,-4123.33,0.00011993,2]
[323266705,1713858640785,-500.0,0.00011993,2]
[323266707,1713858640794,-500.0,0.00011993,2]
[323266709,1713858640804,-500.0,0.00011993,2]
[323266711,1713858640813,-500.0,0.00011993,2]
[323266713,1713858640823,-4355.81,0.00011993,2]
[323266715,1713858640832,-500.0,0.00011993,2]
[323266717,1713858640841,-7261.1062676,0.00011994,2]
[323266719,1713858640851,-2315.3854675,0.00011994,2]
[323266721,1713858640861,-950.4429648,0.00011994,2]
[323266723,1713858640871,-558.2,0.00011994,2]
[323266725,1713858640880,-1100.52,0.00011994,2]
[323266727,1713858640890,-500.0,0.00011994,2]
[323266729,1713858640900,-502.86077699,0.00011994,2]
[323266731,1713858640909,-500.0,0.00011994,2]
[323266733,1713858640918,-500.0,0.00011994,2]
[323266736,1713858640927,-719.83,0.00011994,2]
[323266738,1713858640937,-504.2192653,0.00011994,2]
[323266740,1713858640946,-952.2,0.00011994,2]
[323266742,1713858640955,-504.93769746,0.00011994,2]
[323266743,1713858640964,-503.34025107,0.00011994,2]
[323266745,1713858640973,-502.13160845,0.00011994,2]
[323266747,1713858640982,-500.0,0.00011994,2]
[323266750,1713858640992,-500.0,0.00011994,2]
[323266752,1713858641002,-1023.84,0.00011994,2]
[323266754,1713858641011,-1677.89,0.00011994,2]
[323266756,1713858641020,-500.0,0.00011994,2]
[323266758,1713858641029,-500.0,0.00011994,2]
[323266760,1713858641038,-503.95102487,0.00011994,2]
[323266762,1713858641047,-500.0,0.00011994,2]
[323266764,1713858641056,-504.31228408,0.00011994,2]
[323266766,1713858641065,-1118.7,0.00011994,2]
[323266768,1713858641074,-500.0,0.00011994,2]
[323266770,1713858641084,-500.0,0.00011994,2]
[323266772,1713858641093,-502.62509489,0.00011994,2]
[323266774,1713858641102,-500.0,0.00011994,2]
[323266776,1713858641111,-500.0,0.00011994,2]
[323266778,1713858641120,-500.0,0.00011994,2]
[323266780,1713858641129,-1075.03,0.00011994,2]
[323266782,1713858641138,-521.79888844,0.00011994,2]
[323266784,1713858641147,-500.0,0.00011994,2]
[323266786,1713858641156,-979.24,0.00011994,2]
[323266788,1713858641166,-500.0,0.00011994,2]
[323266790,1713858641174,-504.6265962,0.00011994,2]
[323266792,1713858641183,-502.68325264,0.00011994,2]
[323266794,1713858641192,-500.0,0.00011994,2]
[323266796,1713858641202,-505.86305804,0.00011994,2]
[323266798,1713858641211,-500.0,0.00011994,2]
[323266800,1713858641221,-503.18951277,0.00011994,2]
[323266802,1713858641230,-500.0,0.00011994,2]
[323266804,1713858641239,-500.0,0.00011994,2]
[323266806,1713858641248,-503.80769065,0.00011994,2]
[323266808,1713858641257,-500.0,0.00011994,2]
[323266810,1713858641266,-414.02865732,0.00011994,2]
[323266812,1713858641275,-433.08519005,0.00011994,2]
[323266814,1713858641284,-500.0,0.00011994,2]
[323266816,1713858641294,-583.82,0.00011994,2]
[323266818,1713858641303,-500.0,0.00011994,2]
[323266820,1713858641312,-501.94799532,0.00011994,2]
[323266822,1713858641321,-500.0,0.00011994,2]
[323266824,1713858641330,-500.0,0.00011994,2]
[323266826,1713858641339,-502.64358475,0.00011994,2]
[323266828,1713858641349,-504.37484672,0.00011994,2]
[323266830,1713858641358,-500.0,0.00011994,2]
[323266832,1713858641367,-500.0,0.00011994,2]
[323266834,1713858641376,-500.0,0.00011994,2]
[323266836,1713858641386,-152.2257386,0.00011994,2]
[323266838,1713858641396,-504.78799258,0.00011994,2]
[323266840,1713858641405,-504.66971467,0.00011994,2]
[323266842,1713858641415,-503.17044374,0.00011994,2]
[323266844,1713858641425,-96.7294308,0.00011994,2]
[323266847,1713858641442,-403.2705692,0.00011994,2]
[323266849,1713858641451,-299.93479237,0.00011994,2]
[323266869,1713858642177,-500.0,0.00011993,2]
[323266870,1713858642186,-200.06520763,0.00011994,2]
[323266871,1713858642196,-500.0,0.00011994,2]
[323266872,1713858642205,-500.0,0.00011994,2]
[323266873,1713858642213,-561.28202898,0.00011994,2]
[323266874,1713858642222,-502.97274328,0.00011994,2]
[323266875,1713858642231,-1105.37,0.00011994,2]
[323266876,1713858642240,-186.13537963,0.00011994,2]
[323266877,1713858642278,-495.8826389,0.00011993,2]
[323266878,1713858642296,-4.1173611,0.00011993,2]
[323266879,1713858642304,-500.0,0.00011993,2]
[323266881,1713858642314,-349.56597969,0.00011994,2]
[323266883,1713858642322,-503.43475645,0.00011994,2]
[323266885,1713858642331,-500.0,0.00011994,2]
[323266886,1713858642340,-501.48570942,0.00011994,2]
[323266887,1713858642349,-814.69,0.00011994,2]
[323266888,1713858642358,-500.0,0.00011994,2]
[323266889,1713858642367,-500.0,0.00011994,2]
[323266890,1713858642375,-500.0,0.00011994,2]
[323266891,1713858642385,-500.0,0.00011994,2]
[323266892,1713858642396,-500.0,0.00011994,2]
[323266893,1713858642405,-85.73772433,0.00011994,2]
[323266901,1713858642532,-418.58469927,0.00011994,2]
[323266903,1713858642542,-500.0,0.00011994,2]
[323266905,1713858642552,-500.0,0.00011994,2]
[323266907,1713858642561,-500.0,0.00011994,2]
[323266909,1713858642571,-500.0,0.00011994,2]
[323266911,1713858642580,-660.42,0.00011994,2]
[323266913,1713858642589,-500.0,0.00011994,2]
[323266915,1713858642598,-500.0,0.00011994,2]
[323266917,1713858642608,-227.75841082,0.00011994,2]
[323266919,1713858642618,-501.64429941,0.00011994,2]
[323266921,1713858642627,-506.30305929,0.00011994,2]
[323266923,1713858642636,-504.35501501,0.00011994,2]
[323266925,1713858642647,-500.0,0.00011994,2]
[323266927,1713858642656,-150.0,0.00011994,2]
[323266929,1713858642666,-500.0,0.00011994,2]
[323266931,1713858642676,-500.0,0.00011994,2]
[323266933,1713858642689,-500.0,0.00011994,2]
[323266935,1713858642698,-500.0,0.00011994,2]
[323266937,1713858642707,-500.0,0.00011994,2]
[323266939,1713858642717,-500.0,0.00011994,2]
[323266941,1713858642726,-500.0,0.00011994,2]
[323266943,1713858642736,-500.0,0.00011994,2]
[323266945,1713858642746,-501.78671626,0.00011994,2]
[323266947,1713858642756,-500.0,0.00011994,2]
[323266949,1713858642766,-500.0,0.00011994,2]
[323266950,1713858642775,-596.55665612,0.00011994,2]
[323266952,1713858642784,-500.0,0.00011994,2]
[323266954,1713858642793,-500.0,0.00011994,2]
[323266956,1713858642802,-504.27282077,0.00011994,2]
[323266958,1713858642810,-500.0,0.00011994,2]
[323266960,1713858642819,-500.0,0.00011994,2]
[323266963,1713858642828,-500.0,0.00011994,2]
[323266965,1713858642839,-255.83381116,0.00011994,2]
[323267003,1713858643513,-551.19,0.00011993,2]
[323267004,1713858643522,-500.0,0.00011993,2]
[323267005,1713858643531,-244.16618884,0.00011994,2]
[323267006,1713858643540,-500.0,0.00011994,2]
[323267007,1713858643549,-500.0,0.00011994,2]
[323267008,1713858643559,-459.0703946,0.00011994,2]
[323267009,1713858643567,-500.0,0.00011994,2]
[323267010,1713858643576,-500.0,0.00011994,2]
[323267011,1713858643585,-556.32810192,0.00011994,2]
[323267012,1713858643593,-500.0,0.00011994,2]
[323267013,1713858643602,-500.0,0.00011994,2]
[323267014,1713858643611,-500.0,0.00011994,2]
[323267015,1713858643620,-500.0,0.00011994,2]
[323267016,1713858643629,-1704.02,0.00011994,2]
[323267017,1713858643638,-503.22269717,0.00011994,2]
[323267018,1713858643650,-251.77152733,0.00011994,2]
[323267019,1713858643658,-566.9208245,0.00011994,2]
[323267020,1713858643668,-500.0,0.00011994,2]
[323267021,1713858643678,-500.0,0.00011994,2]
[323267022,1713858643689,-1140.98,0.00011994,2]
[323267023,1713858643698,-500.0,0.00011994,2]
[323267024,1713858643707,-500.0,0.00011994,2]
[323267025,1713858643717,-500.0,0.00011994,2]
[323267026,1713858643726,-511.16,0.00011994,2]
[323267027,1713858643735,-500.0,0.00011994,2]
[323267028,1713858643745,-500.0,0.00011994,2]
[323267029,1713858643755,-500.0,0.00011994,2]
[323267030,1713858643766,-500.0,0.00011994,2]
[323267031,1713858643775,-500.0,0.00011994,2]
[323267032,1713858643784,-500.0,0.00011994,2]
[323267033,1713858643793,-500.0,0.00011994,2]
[323267034,1713858643802,-500.0,0.00011994,2]
[323267035,1713858643811,-517.71749136,0.00011994,2]
[323267036,1713858643820,-500.0,0.00011994,2]
[323267037,1713858643828,-367.08538083,0.00011994,2]
[323267038,1713858643843,-92.66433523,0.00011994,2]
[323267039,1713858643852,-500.0,0.00011994,2]
[323267040,1713858643861,-501.34966844,0.00011994,2]
[323267041,1713858643870,-500.0,0.00011994,2]
[323267042,1713858643878,-449.6965016,0.00011994,2]
[323267043,1713858643888,-500.0,0.00011994,2]
[323267044,1713858643899,-371.33715533,0.00011994,2]
[323267045,1713858643925,-146.57719944,0.00011994,2]
[323267046,1713858643934,-158.97483156,0.00011994,2]
[323267047,1713858643944,-21.00852338,0.00011994,2]
[323267048,1713858643953,-500.0,0.00011994,2]
[323267049,1713858643962,-500.0,0.00011994,2]
[323267050,1713858643970,-500.0,0.00011994,2]
[323267051,1713858643979,-113.86769262,0.00011994,2]
[323267071,1713858647045,-500.0,0.00011992,2]
[323267072,1713858647059,-500.0,0.00011993,2]
[323267073,1713858647068,-500.0,0.00011993,2]
[323267074,1713858647078,-500.0,0.00011993,2]
[323267075,1713858647087,-500.0,0.00011993,2]
[323267076,1713858647097,-500.0,0.00011993,2]
[323267077,1713858647106,-500.0,0.00011993,2]
[323267078,1713858647115,-386.13230738,0.00011994,2]
[323267079,1713858647125,-500.0,0.00011994,2]
[323267080,1713858647134,-500.0,0.00011994,2]
[323267081,1713858647144,-500.0,0.00011994,2]
[323267082,1713858647155,-500.0,0.00011994,2]
[323267083,1713858647164,-60175.52,0.00011994,2]
[323267084,1713858647173,-500.0,0.00011994,2]
[323267085,1713858647182,-1100.69,0.00011994,2]
[323267086,1713858647191,-500.0,0.00011994,2]
[323267087,1713858647201,-500.0,0.00011994,2]
[323267088,1713858647210,-231.60376107,0.00011994,2]
[323267089,1713858647219,-500.0,0.00011994,2]
[323267090,1713858647228,-500.0,0.00011994,2]
[323267091,1713858647237,-363.91748605,0.00011994,2]
[323267092,1713858647247,-500.0,0.00011994,2]
[323267093,1713858647256,-500.0,0.00011994,2]
[323267094,1713858647265,-500.0,0.00011994,2]
[323267095,1713858647275,-500.0,0.00011994,2]
[323267096,1713858647284,-500.0,0.00011994,2]
[323267097,1713858647293,-500.0,0.00011994,2]
[323267099,1713858647303,-500.0,0.00011994,2]
[323267100,1713858647312,-648.6350162,0.00011994,2]
[323267101,1713858647321,-529.22907206,0.00011994,2]
[323267102,1713858647330,-500.0,0.00011994,2]
[323267103,1713858647339,-1044.15,0.00011994,2]
[323267104,1713858647348,-500.0,0.00011994,2]
[323267105,1713858647357,-530.47,0.00011994,2]
[323267106,1713858647367,-10894.86,0.00011994,2]
[323267107,1713858647376,-500.0,0.00011994,2]
[323267108,1713858647386,-500.0,0.00011994,2]
[323267109,1713858647396,-2648.85,0.00011994,2]
[323267110,1713858647407,-580.14669754,0.00011994,2]
[323267111,1713858647417,-500.0,0.00011994,2]
[323267112,1713858647427,-504.49335913,0.00011994,2]
[323267113,1713858647437,-500.0,0.00011994,2]
[323267114,1713858647447,-501.25,0.00011994,2]
[323267115,1713858647457,-500.0,0.00011994,2]
[323267116,1713858647467,-784.67,0.00011994,2]
[323267117,1713858647478,-3818.66,0.00011994,2]
[323267118,1713858647489,-1774.32,0.00011994,2]
[323267119,1713858647499,-500.0,0.00011994,2]
[323267120,1713858647508,-500.0,0.00011994,2]
[323267121,1713858647518,-501.16869975,0.00011994,2]
[323267122,1713858647528,-164.70946529,0.00011994,2]
[323267123,1713858647538,-500.0,0.00011994,2]
[323267124,1713858647548,-605.67,0.00011994,2]
[323267125,1713858647559,-500.0,0.00011994,2]
[323267126,1713858647568,-500.0,0.00011994,2]
[323267127,1713858647577,-500.0,0.00011994,2]
[323267128,1713858647587,-2411.26,0.00011994,2]
[323267129,1713858647598,-500.0,0.00011994,2]
[323267130,1713858647611,-501.33957179,0.00011994,2]
[323267131,1713858647622,-1567.42,0.00011994,2]
[323267132,1713858647632,-655.5,0.00011994,2]
[323267133,1713858647642,-215.24131147,0.00011994,2]
[323267134,1713858647654,-500.0,0.00011994,2]
[323267135,1713858647665,-500.0,0.00011994,2]
[323267136,1713858647675,-500.0,0.00011994,2]
[323267137,1713858647690,-500.0,0.00011994,2]
[323267138,1713858647700,-500.0,0.00011994,2]
[323267139,1713858647710,-388.55946281,0.00011994,2]
[323267140,1713858647721,-500.0,0.00011994,2]
[323267141,1713858647733,-500.0,0.00011994,2]
[323267142,1713858647744,-805.89,0.00011994,2]
[323267143,1713858647754,-674.72,0.00011994,2]
[323267144,1713858647767,-500.0,0.00011994,2]
[323267145,1713858647777,-500.0,0.00011994,2]
[323267146,1713858647787,-500.0,0.00011994,2]
[323267147,1713858647796,-500.0,0.00011994,2]
[323267148,1713858647807,-506.74581518,0.00011994,2]
[323267149,1713858647817,-500.0,0.00011994,2]
[323267150,1713858647828,-500.0,0.00011994,2]
[323267151,1713858647839,-809.36,0.00011994,2]
[323267152,1713858647850,-500.0,0.00011994,2]
[323267153,1713858647861,-500.0,0.00011994,2]
[323267154,1713858647872,-500.0,0.00011994,2]
[323267155,1713858647882,-500.0,0.00011994,2]
[323267156,1713858647893,-500.0,0.00011994,2]
[323267157,1713858647905,-592.68,0.00011994,2]
[323267158,1713858647915,-553.89,0.00011994,2]
[323267159,1713858647924,-500.0,0.00011994,2]
[323267160,1713858647934,-500.0,0.00011994,2]
[323267161,1713858647943,-500.0,0.00011994,2]
[323267162,1713858647954,-500.0,0.00011994,2]
[323267163,1713858647964,-500.0,0.00011994,2]
[323267164,1713858647974,-500.0,0.00011994,2]
[323267165,1713858647985,-615.74160224,0.00011994,2]
[323267166,1713858647995,-596.99,0.00011994,2]
[323267167,1713858648005,-2340.75,0.00011994,2]
[323267168,1713858648016,-500.0,0.00011994,2]
[323267169,1713858648026,-500.0,0.00011994,2]
[323267170,1713858648037,-500.0,0.00011994,2]
[323267171,1713858648047,-12380.47,0.00011994,2]
[323267172,1713858648057,-500.0,0.00011994,2]